[Event "January 9 Late 2024"]
[Site "https://www.chess.com"]
[Date "2024.01.09"]
[Round "10"]
[White "Zarnicki, Pablo"]
[Black "Khatoev, Eduard"]
[Result "0-1"]
[Board "46"]
[TimeControl "180+1"]
[WhiteFideId "100137"]
[BlackFideId "24145076"]
[WhiteElo "2575"]
[BlackElo "2725"]
[WhiteTeam "ARG"]
[BlackTeam "RUS"]
[WhiteClock "0:00:29"]
[BlackClock "0:01:55"]

1. e4 {[%clk 0:02:50]}  c6 {[%clk 0:02:59]} 2. d4 {[%clk 0:02:50]}  d5 {[%clk 0:02:59]} 3. e5 {[%clk 0:02:51]}  c5 {[%clk 0:02:59]} 4. dxc5 {[%clk 0:02:51]}  e6 {[%clk 0:02:58]} 5. Qg4 {[%clk 0:02:51]}  h5 {[%clk 0:02:57]} 6. Qf4 {[%clk 0:02:49]}  Bxc5 {[%clk 0:02:56]} 7. Nf3 {[%clk 0:02:50]}  Qb6 {[%clk 0:02:55]} 8. Ng5 {[%clk 0:02:46]}  f6 {[%clk 0:02:54]} 9. exf6 {[%clk 0:02:42]}  gxf6 {[%clk 0:02:54]} 10. Nh3 {[%clk 0:02:39]}  e5 {[%clk 0:02:52]} 11. Qg3 {[%clk 0:02:38]}  Ne7 {[%clk 0:02:48]} 12. Nc3 {[%clk 0:02:29]}  Bf5 {[%clk 0:02:46]} 13. Qh4 {[%clk 0:02:10]}  Bxc2 {[%clk 0:02:42]} 14. Na4 {[%clk 0:02:04]}  Qb4+ {[%clk 0:02:40]} 15. Qxb4 {[%clk 0:02:01]}  Bxb4+ {[%clk 0:02:40]} 16. Nc3 {[%clk 0:01:58]}  d4 {[%clk 0:02:40]} 17. a3 {[%clk 0:01:58]}  Bxc3+ {[%clk 0:02:39]} 18. bxc3 {[%clk 0:01:58]}  dxc3 {[%clk 0:02:39]} 19. Be3 {[%clk 0:01:56]}  Be4 {[%clk 0:02:37]} 20. Rc1 {[%clk 0:01:54]}  Nd5 {[%clk 0:02:36]} 21. Bb5+ {[%clk 0:01:49]}  Kf7 {[%clk 0:02:35]} 22. Rg1 {[%clk 0:01:40]}  Rc8 {[%clk 0:02:33]} 23. f3 {[%clk 0:01:31]}  Bxf3 {[%clk 0:02:28]} 24. gxf3 {[%clk 0:01:29]}  Nxe3 {[%clk 0:02:28]} 25. Ke2 {[%clk 0:01:24]}  Nf5 {[%clk 0:02:27]} 26. Bd3 {[%clk 0:01:22]}  Nd4+ {[%clk 0:02:26]} 27. Ke3 {[%clk 0:01:20]}  c2 {[%clk 0:02:23]} 28. Nf2 {[%clk 0:01:13]}  Rc3 {[%clk 0:02:22]} 29. Ne4 {[%clk 0:01:13]}  Rxa3 {[%clk 0:02:21]} 30. Nd6+ {[%clk 0:01:11]}  Kf8 {[%clk 0:02:20]} 31. Nc4 {[%clk 0:01:06]}  Rc3 {[%clk 0:02:18]} 32. Kd2 {[%clk 0:01:05]}  Rb3 {[%clk 0:02:18]} 33. Nd6 {[%clk 0:00:52]}  Nbc6 {[%clk 0:02:14]} 34. Bc4 {[%clk 0:00:47]}  Nxf3+ {[%clk 0:02:13]} 35. Kxc2 {[%clk 0:00:46]}  Ncd4+ {[%clk 0:02:12]} 36. Kd1 {[%clk 0:00:45]}  a5 {[%clk 0:02:02]} 37. Rg8+ {[%clk 0:00:43]}  Ke7 {[%clk 0:02:01]} 38. Rxa8 {[%clk 0:00:41]}  Re3 {[%clk 0:02:00]} 39. Be2 {[%clk 0:00:30]}  Rxe2 {[%clk 0:01:59]} 40. Nf5+ {[%clk 0:00:30]}  Kd7 {[%clk 0:01:56]} 41. Nxd4 {[%clk 0:00:29]}  Rd2# {[%clk 0:01:55]} 0-1

[Event "January 9 Late 2024"]
[Site "https://www.chess.com"]
[Date "2024.01.09"]
[Round "10"]
[White "Rohan, Ahuja"]
[Black "Ezat, Mohamed"]
[Result "1-0"]
[Board "48"]
[TimeControl "180+1"]
[WhiteFideId "5090598"]
[BlackFideId "10600906"]
[WhiteElo "2724"]
[BlackElo "2494"]
[WhiteTeam "IND"]
[BlackTeam "EGY"]
[WhiteClock "0:00:26"]
[BlackClock "0:00:06"]

1. Nf3 {[%clk 0:03:00]}  Nf6 {[%clk 0:02:43]} 2. g3 {[%clk 0:03:01]}  g6 {[%clk 0:02:43]} 3. b3 {[%clk 0:03:01]}  Bg7 {[%clk 0:02:44]} 4. Bb2 {[%clk 0:03:02]}  O-O {[%clk 0:02:44]} 5. Bg2 {[%clk 0:03:03]}  d6 {[%clk 0:02:45]} 6. d4 {[%clk 0:03:03]}  e5 {[%clk 0:02:45]} 7. dxe5 {[%clk 0:03:03]}  Nfd7 {[%clk 0:02:46]} 8. h4 {[%clk 0:02:33]}  Nc6 {[%clk 0:02:29]} 9. Qd2 {[%clk 0:02:22]}  a5 {[%clk 0:01:54]} 10. Nc3 {[%clk 0:01:50]}  Ndxe5 {[%clk 0:01:53]} 11. Nxe5 {[%clk 0:01:47]}  Nxe5 {[%clk 0:01:48]} 12. h5 {[%clk 0:01:45]}  a4 {[%clk 0:01:44]} 13. hxg6 {[%clk 0:01:28]}  hxg6 {[%clk 0:01:43]} 14. O-O-O {[%clk 0:01:25]}  axb3 {[%clk 0:01:40]} 15. axb3 {[%clk 0:01:25]}  c6 {[%clk 0:01:25]} 16. Rh4 {[%clk 0:01:24]}  Re8 {[%clk 0:00:55]} 17. Rdh1 {[%clk 0:01:23]}  Ng4 {[%clk 0:00:50]} 18. Bf3 {[%clk 0:01:09]}  Nxf2 {[%clk 0:00:45]} 19. R1h2 {[%clk 0:00:54]}  Qb6 {[%clk 0:00:34]} 20. Nd5 {[%clk 0:00:43]}  Bxb2+ {[%clk 0:00:26]} 21. Kxb2 {[%clk 0:00:44]}  cxd5 {[%clk 0:00:23]} 22. Rh8+ {[%clk 0:00:44]}  Kg7 {[%clk 0:00:21]} 23. Rxe8 {[%clk 0:00:45]}  Qa7 {[%clk 0:00:08]} 24. Qh6+ {[%clk 0:00:38]}  Kf6 {[%clk 0:00:08]} 25. Qf4+ {[%clk 0:00:37]}  Bf5 {[%clk 0:00:08]} 26. Qh4+ {[%clk 0:00:29]}  g5 {[%clk 0:00:07]} 27. Qh8+ {[%clk 0:00:29]}  Kg6 {[%clk 0:00:06]} 28. Rh6# {[%clk 0:00:26]} 1-0

[Event "January 9 Late 2024"]
[Site "https://www.chess.com"]
[Date "2024.01.09"]
[Round "10"]
[White "Joie, Sebastien"]
[Black "Sieciechowicz, Marcin"]
[Result "1/2-1/2"]
[Board "49"]
[TimeControl "180+1"]
[WhiteFideId "650420"]
[BlackFideId "1130170"]
[WhiteElo "2470"]
[BlackElo "2695"]
[WhiteTeam "FRA"]
[BlackTeam "POL"]
[WhiteClock "0:00:06"]
[BlackClock "0:00:06"]

1. d4 {[%clk 0:02:53]}  Nf6 {[%clk 0:02:58]} 2. c4 {[%clk 0:02:53]}  g6 {[%clk 0:02:58]} 3. Nc3 {[%clk 0:02:53]}  Bg7 {[%clk 0:02:59]} 4. e4 {[%clk 0:02:53]}  d6 {[%clk 0:03:00]} 5. f4 {[%clk 0:02:53]}  O-O {[%clk 0:02:59]} 6. Nf3 {[%clk 0:02:54]}  e5 {[%clk 0:02:52]} 7. dxe5 {[%clk 0:02:52]}  dxe5 {[%clk 0:02:52]} 8. Qxd8 {[%clk 0:02:53]}  Rxd8 {[%clk 0:02:51]} 9. Nxe5 {[%clk 0:02:54]}  Na6 {[%clk 0:02:46]} 10. Be2 {[%clk 0:02:38]}  Nc5 {[%clk 0:02:46]} 11. Bf3 {[%clk 0:02:37]}  Be6 {[%clk 0:02:30]} 12. Nd5 {[%clk 0:01:15]}  Nfxe4 {[%clk 0:02:06]} 13. Nxc7 {[%clk 0:00:45]}  Bxe5 {[%clk 0:01:55]} 14. fxe5 {[%clk 0:00:38]}  Bxc4 {[%clk 0:01:49]} 15. Nxa8 {[%clk 0:00:32]}  Nd3+ {[%clk 0:01:45]} 16. Kf1 {[%clk 0:00:28]}  Nxc1+ {[%clk 0:00:29]} 17. Kg1 {[%clk 0:00:28]}  Ne2+ {[%clk 0:00:21]} 18. Bxe2 {[%clk 0:00:28]}  Bxe2 {[%clk 0:00:22]} 19. Nc7 {[%clk 0:00:28]}  Rd2 {[%clk 0:00:21]} 20. Re1 {[%clk 0:00:16]}  Kg7 {[%clk 0:00:14]} 21. h4 {[%clk 0:00:16]}  Rxb2 {[%clk 0:00:13]} 22. Rh3 {[%clk 0:00:12]}  Bg4 {[%clk 0:00:10]} 23. Rb3 {[%clk 0:00:10]}  Rxb3 {[%clk 0:00:08]} 24. axb3 {[%clk 0:00:11]}  Nc5 {[%clk 0:00:08]} 25. Ne8+ {[%clk 0:00:06]}  Kf8 {[%clk 0:00:07]} 26. Nf6 {[%clk 0:00:06]}  Be6 {[%clk 0:00:08]} 27. b4 {[%clk 0:00:05]}  Nd3 {[%clk 0:00:07]} 28. Rd1 {[%clk 0:00:05]}  Nxe5 {[%clk 0:00:06]} 29. Nxh7+ {[%clk 0:00:04]}  Kg7 {[%clk 0:00:06]} 30. Ng5 {[%clk 0:00:05]}  Bf5 {[%clk 0:00:07]} 31. Rd6 {[%clk 0:00:04]}  a6 {[%clk 0:00:06]} 32. Rb6 {[%clk 0:00:04]}  Bc8 {[%clk 0:00:06]} 33. Ne4 {[%clk 0:00:03]}  Nc6 {[%clk 0:00:06]} 34. Nd6 {[%clk 0:00:02]}  Be6 {[%clk 0:00:05]} 35. Rxb7 {[%clk 0:00:03]}  Bd5 {[%clk 0:00:05]} 36. Rb6 {[%clk 0:00:03]}  Ne5 {[%clk 0:00:04]} 37. Ne8+ {[%clk 0:00:02]}  Kf8 {[%clk 0:00:04]} 38. Nf6 {[%clk 0:00:02]}  Bc4 {[%clk 0:00:05]} 39. Ne4 {[%clk 0:00:02]}  Bb5 {[%clk 0:00:05]} 40. Nd6 {[%clk 0:00:03]}  Nd7 {[%clk 0:00:04]} 41. Rb7 {[%clk 0:00:03]}  Bc6 {[%clk 0:00:04]} 42. Ra7 {[%clk 0:00:02]}  Ne5 {[%clk 0:00:04]} 43. Rxa6 {[%clk 0:00:02]}  Bd5 {[%clk 0:00:04]} 44. Nb5 {[%clk 0:00:01]}  Bc4 {[%clk 0:00:04]} 45. Ra8+ {[%clk 0:00:02]}  Kg7 {[%clk 0:00:04]} 46. Nd6 {[%clk 0:00:02]}  Bd5 {[%clk 0:00:05]} 47. b5 {[%clk 0:00:02]}  Bxa8 {[%clk 0:00:05]} 48. b6 {[%clk 0:00:03]}  Nd7 {[%clk 0:00:05]} 49. b7 {[%clk 0:00:03]}  Bxb7 {[%clk 0:00:05]} 50. Nxb7 {[%clk 0:00:04]}  Ne5 {[%clk 0:00:05]} 51. Nd6 {[%clk 0:00:04]}  Ng4 {[%clk 0:00:05]} 52. Ne4 {[%clk 0:00:05]}  f5 {[%clk 0:00:05]} 53. Ng5 {[%clk 0:00:05]}  Kh6 {[%clk 0:00:05]} 54. g3 {[%clk 0:00:05]}  Nf6 {[%clk 0:00:05]} 55. Kg2 {[%clk 0:00:05]}  Ne4 {[%clk 0:00:05]} 56. Ne6 {[%clk 0:00:04]}  Nf6 {[%clk 0:00:05]} 57. Kf3 {[%clk 0:00:04]}  Kh5 {[%clk 0:00:05]} 58. Nf4+ {[%clk 0:00:04]}  Kh6 {[%clk 0:00:05]} 59. Ne6 {[%clk 0:00:05]}  Kh5 {[%clk 0:00:05]} 60. Nf4+ {[%clk 0:00:05]}  Kh6 {[%clk 0:00:06]} 61. Ne6 {[%clk 0:00:06]} 1/2-1/2

[Event "January 9 Late 2024"]
[Site "https://www.chess.com"]
[Date "2024.01.09"]
[Round "10"]
[White "Chan, Yi Ren Daniel"]
[Black "Buchenau, Frank"]
[Result "1-0"]
[Board "51"]
[TimeControl "180+1"]
[WhiteFideId "5801583"]
[BlackFideId "4604350"]
[WhiteElo "2837"]
[BlackElo "2450"]
[WhiteTeam "SGP"]
[BlackTeam "GER"]
[WhiteClock "0:02:37"]
[BlackClock "0:01:02"]

1. e4 {[%clk 0:03:00]}  e6 {[%clk 0:02:59]} 2. Nf3 {[%clk 0:03:01]}  d5 {[%clk 0:03:00]} 3. Nc3 {[%clk 0:03:02]}  Nf6 {[%clk 0:02:59]} 4. e5 {[%clk 0:03:02]}  Nfd7 {[%clk 0:02:59]} 5. d4 {[%clk 0:03:03]}  c5 {[%clk 0:02:59]} 6. dxc5 {[%clk 0:03:04]}  Nc6 {[%clk 0:02:59]} 7. Bf4 {[%clk 0:03:05]}  Bxc5 {[%clk 0:02:58]} 8. Bd3 {[%clk 0:03:05]}  f6 {[%clk 0:02:58]} 9. exf6 {[%clk 0:03:05]}  Qxf6 {[%clk 0:02:59]} 10. Bg5 {[%clk 0:03:06]}  Qf7 {[%clk 0:02:59]} 11. Be3 {[%clk 0:03:07]}  d4 {[%clk 0:02:38]} 12. Ng5 {[%clk 0:03:07]}  Qe7 {[%clk 0:02:25]} 13. Qh5+ {[%clk 0:03:01]}  Kf8 {[%clk 0:02:13]} 14. Nxh7+ {[%clk 0:02:59]}  Kg8 {[%clk 0:02:03]} 15. Bg5 {[%clk 0:03:00]}  Qf7 {[%clk 0:01:54]} 16. Bg6 {[%clk 0:02:57]}  Qxg6 {[%clk 0:01:38]} 17. Qxg6 {[%clk 0:02:56]}  Rxh7 {[%clk 0:01:29]} 18. Ne4 {[%clk 0:02:51]}  Bf8 {[%clk 0:01:02]} 19. f4 {[%clk 0:02:37]} 1-0

[Event "January 9 Late 2024"]
[Site "https://www.chess.com"]
[Date "2024.01.09"]
[Round "10"]
[White "Zubritskiy, Artyom"]
[Black "Khater, Sherif"]
[Result "1-0"]
[Board "52"]
[TimeControl "180+1"]
[WhiteFideId "4181247"]
[BlackFideId "2034280"]
[WhiteElo "2756"]
[BlackElo "2539"]
[WhiteTeam "FID"]
[BlackTeam "USA"]
[WhiteClock "0:00:08"]
[BlackClock "0:00:02"]

1. e4 {[%clk 0:03:00]}  a6 {[%clk 0:02:53]} 2. d4 {[%clk 0:03:00]}  b5 {[%clk 0:02:53]} 3. Nf3 {[%clk 0:03:01]}  Bb7 {[%clk 0:02:53]} 4. Bd3 {[%clk 0:03:01]}  e6 {[%clk 0:02:53]} 5. Qe2 {[%clk 0:03:02]}  c5 {[%clk 0:02:53]} 6. c3 {[%clk 0:03:02]}  Nf6 {[%clk 0:02:51]} 7. e5 {[%clk 0:02:59]}  Nd5 {[%clk 0:02:51]} 8. a3 {[%clk 0:02:59]}  cxd4 {[%clk 0:02:50]} 9. cxd4 {[%clk 0:02:59]}  Nc6 {[%clk 0:02:50]} 10. O-O {[%clk 0:02:59]}  h6 {[%clk 0:02:49]} 11. Nc3 {[%clk 0:02:23]}  Nce7 {[%clk 0:02:47]} 12. Ne4 {[%clk 0:02:20]}  Nf5 {[%clk 0:02:38]} 13. Rd1 {[%clk 0:01:33]}  Qb6 {[%clk 0:02:36]} 14. Bc2 {[%clk 0:01:29]}  Be7 {[%clk 0:02:32]} 15. a4 {[%clk 0:01:24]}  O-O {[%clk 0:02:19]} 16. a5 {[%clk 0:01:17]}  Qc7 {[%clk 0:02:17]} 17. g4 {[%clk 0:01:13]}  Nh4 {[%clk 0:02:15]} 18. Nxh4 {[%clk 0:01:14]}  Bxh4 {[%clk 0:02:16]} 19. Nd6 {[%clk 0:00:47]}  Nb4 {[%clk 0:02:08]} 20. Bb1 {[%clk 0:00:41]}  Bd5 {[%clk 0:01:52]} 21. Ra3 {[%clk 0:00:40]}  Nc6 {[%clk 0:01:01]} 22. Rh3 {[%clk 0:00:31]}  Qd8 {[%clk 0:00:39]} 23. Qd3 {[%clk 0:00:22]}  g6 {[%clk 0:00:36]} 24. Bxh6 {[%clk 0:00:21]}  Qe7 {[%clk 0:00:34]} 25. f4 {[%clk 0:00:17]}  Nb4 {[%clk 0:00:32]} 26. Qd2 {[%clk 0:00:15]}  Nc6 {[%clk 0:00:32]} 27. g5 {[%clk 0:00:15]}  Rfc8 {[%clk 0:00:19]} 28. Rxh4 {[%clk 0:00:15]}  Nxd4 {[%clk 0:00:19]} 29. Qxd4 {[%clk 0:00:15]}  Rc6 {[%clk 0:00:17]} 30. Qe3 {[%clk 0:00:14]}  Rac8 {[%clk 0:00:16]} 31. Nxc8 {[%clk 0:00:13]}  Rxc8 {[%clk 0:00:17]} 32. Rh3 {[%clk 0:00:11]}  Qb4 {[%clk 0:00:15]} 33. Qf2 {[%clk 0:00:10]}  Rc4 {[%clk 0:00:14]} 34. Rc3 {[%clk 0:00:09]}  Rxf4 {[%clk 0:00:13]} 35. Qd2 {[%clk 0:00:03]}  Rg4+ {[%clk 0:00:13]} 36. Rg3 {[%clk 0:00:04]}  Qf4 {[%clk 0:00:13]} 37. Qxf4 {[%clk 0:00:04]}  Rxf4 {[%clk 0:00:13]} 38. Rc1 {[%clk 0:00:04]}  Rb4 {[%clk 0:00:12]} 39. Bd3 {[%clk 0:00:05]}  Rxb2 {[%clk 0:00:12]} 40. Rc8+ {[%clk 0:00:06]}  Kh7 {[%clk 0:00:12]} 41. Bf8 {[%clk 0:00:07]}  Bb7 {[%clk 0:00:05]} 42. Rh3+ {[%clk 0:00:07]}  Kg8 {[%clk 0:00:05]} 43. Be7+ {[%clk 0:00:07]}  Bxc8 {[%clk 0:00:05]} 44. Bf6 {[%clk 0:00:08]}  Rb1+ {[%clk 0:00:02]} 45. Bxb1 {[%clk 0:00:08]} 1-0

[Event "January 9 Late 2024"]
[Site "https://www.chess.com"]
[Date "2024.01.09"]
[Round "10"]
[White "Lopusiewicz, Piotr"]
[Black "Kosteniuk, Alexandra"]
[Result "0-1"]
[Board "55"]
[TimeControl "180+1"]
[WhiteFideId "1116029"]
[BlackFideId "4128125"]
[WhiteElo "2518"]
[BlackElo "2715"]
[WhiteTeam "POL"]
[BlackTeam "SUI"]
[WhiteClock "0:00:00"]
[BlackClock "0:00:28"]

1. d4 {[%clk 0:03:00]}  f5 {[%clk 0:02:59]} 2. Bf4 {[%clk 0:03:00]}  Nf6 {[%clk 0:02:59]} 3. e3 {[%clk 0:03:01]}  g6 {[%clk 0:02:57]} 4. h4 {[%clk 0:03:01]}  h6 {[%clk 0:02:46]} 5. Nc3 {[%clk 0:03:00]}  d6 {[%clk 0:02:44]} 6. Bc4 {[%clk 0:02:58]}  e6 {[%clk 0:02:41]} 7. Nge2 {[%clk 0:02:51]}  Bg7 {[%clk 0:02:41]} 8. Qd2 {[%clk 0:02:51]}  Qe7 {[%clk 0:02:35]} 9. Bh2 {[%clk 0:02:43]}  Nbd7 {[%clk 0:02:32]} 10. O-O-O {[%clk 0:02:28]}  a6 {[%clk 0:02:29]} 11. Nf4 {[%clk 0:02:25]}  Nf8 {[%clk 0:02:29]} 12. f3 {[%clk 0:02:18]}  b5 {[%clk 0:02:28]} 13. Bb3 {[%clk 0:02:16]}  g5 {[%clk 0:02:20]} 14. hxg5 {[%clk 0:02:11]}  hxg5 {[%clk 0:02:21]} 15. Nh3 {[%clk 0:02:09]}  g4 {[%clk 0:02:16]} 16. Nf4 {[%clk 0:02:06]}  Bb7 {[%clk 0:02:12]} 17. Qf2 {[%clk 0:01:56]}  O-O-O {[%clk 0:02:02]} 18. Bg3 {[%clk 0:01:56]}  Rxh1 {[%clk 0:01:58]} 19. Rxh1 {[%clk 0:01:56]}  c5 {[%clk 0:01:48]} 20. dxc5 {[%clk 0:01:34]}  dxc5 {[%clk 0:01:49]} 21. a3 {[%clk 0:01:31]}  c4 {[%clk 0:01:43]} 22. Ba2 {[%clk 0:01:31]}  e5 {[%clk 0:01:38]} 23. Nh5 {[%clk 0:01:23]}  Nxh5 {[%clk 0:01:38]} 24. Rxh5 {[%clk 0:01:23]}  gxf3 {[%clk 0:01:37]} 25. gxf3 {[%clk 0:01:22]}  Qd7 {[%clk 0:01:34]} 26. e4 {[%clk 0:01:15]}  f4 {[%clk 0:01:26]} 27. Bh4 {[%clk 0:01:13]}  Qd4 {[%clk 0:01:15]} 28. Qe2 {[%clk 0:00:40]}  Rd7 {[%clk 0:00:51]} 29. Bf2 {[%clk 0:00:39]}  Qd6 {[%clk 0:00:51]} 30. Bxc4 {[%clk 0:00:26]}  bxc4 {[%clk 0:00:49]} 31. Qxc4+ {[%clk 0:00:26]}  Kb8 {[%clk 0:00:40]} 32. Bc5 {[%clk 0:00:20]}  Qg6 {[%clk 0:00:39]} 33. Rf5 {[%clk 0:00:15]}  Ne6 {[%clk 0:00:39]} 34. Nd5 {[%clk 0:00:13]}  Nxc5 {[%clk 0:00:36]} 35. Qxc5 {[%clk 0:00:13]}  Bxd5 {[%clk 0:00:36]} 36. Qb4+ {[%clk 0:00:04]}  Bb7 {[%clk 0:00:36]} 37. Kb1 {[%clk 0:00:02]}  Qd6 {[%clk 0:00:31]} 38. Qc4 {[%clk 0:00:01]}  Rc7 {[%clk 0:00:28]} 39. Qg8+ {[%clk 0:00:00]}  Ka7 {[%clk 0:00:28]} 0-1

[Event "January 9 Late 2024"]
[Site "https://www.chess.com"]
[Date "2024.01.09"]
[Round "10"]
[White "Rozman, Levy"]
[Black "Murtazin, Bulat"]
[Result "1-0"]
[Board "56"]
[TimeControl "180+1"]
[WhiteFideId "2039877"]
[BlackFideId "24151351"]
[WhiteElo "2703"]
[BlackElo "2513"]
[WhiteTeam "USA"]
[BlackTeam "RUS"]
[WhiteClock "0:00:59"]
[BlackClock "0:00:00"]

1. e4 {[%clk 0:03:00]}  e6 {[%clk 0:03:00]} 2. b3 {[%clk 0:03:00]}  d5 {[%clk 0:03:00]} 3. Bb2 {[%clk 0:03:01]}  dxe4 {[%clk 0:02:59]} 4. Nc3 {[%clk 0:03:01]}  Nf6 {[%clk 0:03:00]} 5. Qe2 {[%clk 0:03:02]}  Be7 {[%clk 0:02:56]} 6. g4 {[%clk 0:03:01]}  Nc6 {[%clk 0:02:54]} 7. Nxe4 {[%clk 0:02:59]}  Nd4 {[%clk 0:02:46]} 8. Qd3 {[%clk 0:02:59]}  Nxe4 {[%clk 0:02:38]} 9. Qxe4 {[%clk 0:02:58]}  c5 {[%clk 0:02:33]} 10. Nf3 {[%clk 0:02:50]}  Bf6 {[%clk 0:02:26]} 11. O-O-O {[%clk 0:02:44]}  Bd7 {[%clk 0:01:58]} 12. Nxd4 {[%clk 0:02:29]}  cxd4 {[%clk 0:01:39]} 13. g5 {[%clk 0:02:14]}  Bc6 {[%clk 0:01:09]} 14. Bb5 {[%clk 0:02:13]}  Bxb5 {[%clk 0:01:07]} 15. gxf6 {[%clk 0:02:13]}  gxf6 {[%clk 0:01:04]} 16. Qxb7 {[%clk 0:02:07]}  Rb8 {[%clk 0:00:48]} 17. Qxa7 {[%clk 0:02:07]}  d3 {[%clk 0:00:36]} 18. c4 {[%clk 0:02:05]}  Bc6 {[%clk 0:00:27]} 19. Rhg1 {[%clk 0:01:51]}  e5 {[%clk 0:00:16]} 20. Rg7 {[%clk 0:01:47]}  Rb7 {[%clk 0:00:16]} 21. Qc5 {[%clk 0:01:45]}  Qb6 {[%clk 0:00:15]} 22. Qxb6 {[%clk 0:01:40]}  Rxb6 {[%clk 0:00:15]} 23. f4 {[%clk 0:01:41]}  Bf3 {[%clk 0:00:13]} 24. Re1 {[%clk 0:01:36]}  e4 {[%clk 0:00:13]} 25. Bd4 {[%clk 0:01:25]}  Ra6 {[%clk 0:00:12]} 26. Kb2 {[%clk 0:01:25]}  Ke7 {[%clk 0:00:12]} 27. a4 {[%clk 0:01:20]}  h5 {[%clk 0:00:12]} 28. h4 {[%clk 0:01:19]}  Rb8 {[%clk 0:00:12]} 29. Kc3 {[%clk 0:01:18]}  f5 {[%clk 0:00:12]} 30. Rg3 {[%clk 0:01:13]}  Kf8 {[%clk 0:00:11]} 31. Bc5+ {[%clk 0:01:08]}  Ke8 {[%clk 0:00:09]} 32. Rg8+ {[%clk 0:01:09]}  Kd7 {[%clk 0:00:09]} 33. Rxb8 {[%clk 0:01:09]}  Rg6 {[%clk 0:00:10]} 34. a5 {[%clk 0:01:06]}  Rg4 {[%clk 0:00:03]} 35. a6 {[%clk 0:01:05]}  Rxf4 {[%clk 0:00:01]} 36. a7 {[%clk 0:01:05]}  e3 {[%clk 0:00:02]} 37. Rxe3 {[%clk 0:01:04]}  Bh1 {[%clk 0:00:01]} 38. Rxd3+ {[%clk 0:01:03]}  Ke6 {[%clk 0:00:01]} 39. a8=N {[%clk 0:00:59]}  Bxa8 {[%clk 0:00:00]} 40. Rxa8 {[%clk 0:00:59]} 1-0

[Event "January 9 Late 2024"]
[Site "https://www.chess.com"]
[Date "2024.01.09"]
[Round "10"]
[White "Rosen, Eric"]
[Black "Bellissimo, Joseph F."]
[Result "1-0"]
[Board "58"]
[TimeControl "180+1"]
[WhiteFideId "2032562"]
[BlackFideId "2609843"]
[WhiteElo "2653"]
[BlackElo "2510"]
[WhiteTeam "USA"]
[BlackTeam "CAN"]
[WhiteClock "0:01:09"]
[BlackClock "0:00:10"]

1. d4 {[%clk 0:03:00]}  Nf6 {[%clk 0:02:59]} 2. Bf4 {[%clk 0:03:00]}  e6 {[%clk 0:02:59]} 3. e3 {[%clk 0:03:01]}  d5 {[%clk 0:02:59]} 4. Nf3 {[%clk 0:03:01]}  Bd6 {[%clk 0:02:58]} 5. Ne5 {[%clk 0:03:01]}  O-O {[%clk 0:02:59]} 6. Nd2 {[%clk 0:03:01]}  b6 {[%clk 0:02:59]} 7. h4 {[%clk 0:03:01]}  Bb7 {[%clk 0:02:58]} 8. Bd3 {[%clk 0:03:00]}  c5 {[%clk 0:02:54]} 9. c3 {[%clk 0:03:00]}  Nc6 {[%clk 0:02:51]} 10. h5 {[%clk 0:02:39]}  Ne7 {[%clk 0:02:36]} 11. h6 {[%clk 0:02:32]}  g6 {[%clk 0:02:36]} 12. Qf3 {[%clk 0:02:32]}  Ne4 {[%clk 0:02:11]} 13. Nxe4 {[%clk 0:02:26]}  dxe4 {[%clk 0:02:11]} 14. Bxe4 {[%clk 0:02:27]}  Bxe4 {[%clk 0:02:10]} 15. Qxe4 {[%clk 0:02:27]}  Nd5 {[%clk 0:02:07]} 16. Bg3 {[%clk 0:02:04]}  f6 {[%clk 0:02:04]} 17. Nxg6 {[%clk 0:01:55]}  Re8 {[%clk 0:01:57]} 18. Bxd6 {[%clk 0:01:15]}  Qxd6 {[%clk 0:01:52]} 19. Qg4 {[%clk 0:01:11]}  f5 {[%clk 0:00:10]} 20. Ne7+ {[%clk 0:01:09]} 1-0

[Event "January 9 Late 2024"]
[Site "https://www.chess.com"]
[Date "2024.01.09"]
[Round "10"]
[White "Pourkashiyan, Atousa"]
[Black "Yang, Kevin"]
[Result "1-0"]
[Board "60"]
[TimeControl "180+1"]
[WhiteFideId "12502014"]
[BlackFideId "30908485"]
[WhiteElo "2508"]
[BlackElo "2609"]
[WhiteTeam "USA"]
[BlackTeam "USA"]
[WhiteClock "0:01:38"]
[BlackClock "0:00:00"]

1. d4 {[%clk 0:02:59]}  Nf6 {[%clk 0:02:59]} 2. c4 {[%clk 0:02:59]}  e6 {[%clk 0:02:58]} 3. Nc3 {[%clk 0:02:59]}  Bb4 {[%clk 0:02:56]} 4. e3 {[%clk 0:02:59]}  O-O {[%clk 0:02:55]} 5. Bd2 {[%clk 0:02:59]}  d5 {[%clk 0:02:54]} 6. Nf3 {[%clk 0:02:57]}  b6 {[%clk 0:02:52]} 7. cxd5 {[%clk 0:02:55]}  exd5 {[%clk 0:02:51]} 8. Bd3 {[%clk 0:02:55]}  a5 {[%clk 0:02:40]} 9. O-O {[%clk 0:02:50]}  Ba6 {[%clk 0:02:36]} 10. Bxa6 {[%clk 0:02:45]}  Nxa6 {[%clk 0:02:37]} 11. Ne5 {[%clk 0:02:45]}  Bd6 {[%clk 0:02:35]} 12. f4 {[%clk 0:02:38]}  c5 {[%clk 0:02:32]} 13. Be1 {[%clk 0:02:35]}  Nc7 {[%clk 0:02:24]} 14. Bh4 {[%clk 0:02:33]}  cxd4 {[%clk 0:01:52]} 15. exd4 {[%clk 0:02:33]}  b5 {[%clk 0:01:44]} 16. Qf3 {[%clk 0:02:31]}  b4 {[%clk 0:01:40]} 17. Bxf6 {[%clk 0:02:18]}  gxf6 {[%clk 0:01:33]} 18. Nc6 {[%clk 0:02:18]}  Qd7 {[%clk 0:01:25]} 19. Nxd5 {[%clk 0:02:18]}  Nxd5 {[%clk 0:01:22]} 20. Qxd5 {[%clk 0:02:19]}  Rfc8 {[%clk 0:01:07]} 21. Ne5 {[%clk 0:02:13]}  fxe5 {[%clk 0:00:59]} 22. fxe5 {[%clk 0:02:13]}  Qe6 {[%clk 0:00:57]} 23. Qxe6 {[%clk 0:01:55]}  fxe6 {[%clk 0:00:57]} 24. exd6 {[%clk 0:01:56]}  Rd8 {[%clk 0:00:57]} 25. Rac1 {[%clk 0:01:49]}  Rxd6 {[%clk 0:00:54]} 26. Rc7 {[%clk 0:01:49]}  Rxd4 {[%clk 0:00:45]} 27. h3 {[%clk 0:01:48]}  Rd2 {[%clk 0:00:28]} 28. Rff7 {[%clk 0:01:46]}  Rxb2 {[%clk 0:00:18]} 29. Rg7+ {[%clk 0:01:46]}  Kh8 {[%clk 0:00:17]} 30. Rxh7+ {[%clk 0:01:46]}  Kg8 {[%clk 0:00:17]} 31. Rcg7+ {[%clk 0:01:47]}  Kf8 {[%clk 0:00:17]} 32. Rf7+ {[%clk 0:01:47]}  Kg8 {[%clk 0:00:17]} 33. Rfg7+ {[%clk 0:01:44]}  Kf8 {[%clk 0:00:17]} 34. h4 {[%clk 0:01:45]}  Rc8 {[%clk 0:00:07]} 35. h5 {[%clk 0:01:45]}  Rc1+ {[%clk 0:00:01]} 36. Kh2 {[%clk 0:01:45]}  Rc4 {[%clk 0:00:02]} 37. Kh3 {[%clk 0:01:40]}  Rd2 {[%clk 0:00:01]} 38. h6 {[%clk 0:01:37]}  Rd3+ {[%clk 0:00:00]} 39. g3 {[%clk 0:01:38]} 1-0